[Event "December 5 Early 2023"]
[Site "https://www.chess.com"]
[Date "2023.12.05"]
[Round "10"]
[White "Mazurkiewicz, Michal"]
[Black "Marcziter, Dmitrii"]
[Result "1-0"]
[Board "104"]
[TimeControl "180+1"]
[WhiteFideId "1124943"]
[BlackFideId "13900765"]
[WhiteElo "2486"]
[BlackElo "2385"]
[WhiteTeam "POL"]
[BlackTeam "GER"]
[WhiteClock "0:00:22"]
[BlackClock "0:00:37"]

1. e4 {[%clk 0:03:00]}  c5 {[%clk 0:02:59]} 2. Nf3 {[%clk 0:03:00]}  a6 {[%clk 0:02:59]} 3. g3 {[%clk 0:02:59]}  Nc6 {[%clk 0:02:58]} 4. Bg2 {[%clk 0:02:59]}  g6 {[%clk 0:02:59]} 5. O-O {[%clk 0:03:00]}  Bg7 {[%clk 0:02:59]} 6. d3 {[%clk 0:02:59]}  e5 {[%clk 0:02:58]} 7. Nc3 {[%clk 0:02:59]}  Nge7 {[%clk 0:02:58]} 8. a4 {[%clk 0:02:58]}  Rb8 {[%clk 0:02:57]} 9. Nd5 {[%clk 0:02:06]}  Nxd5 {[%clk 0:02:47]} 10. exd5 {[%clk 0:02:06]}  Ne7 {[%clk 0:02:47]} 11. d6 {[%clk 0:01:56]}  Nc6 {[%clk 0:02:43]} 12. Be3 {[%clk 0:01:55]}  b6 {[%clk 0:02:42]} 13. Nd2 {[%clk 0:01:51]}  O-O {[%clk 0:02:39]} 14. Nc4 {[%clk 0:01:31]}  Bb7 {[%clk 0:02:34]} 15. a5 {[%clk 0:01:26]}  b5 {[%clk 0:02:26]} 16. Nb6 {[%clk 0:01:08]}  Nxa5 {[%clk 0:02:23]} 17. Nd5 {[%clk 0:01:08]}  Bxd5 {[%clk 0:02:00]} 18. Bxd5 {[%clk 0:01:09]}  Rc8 {[%clk 0:01:46]} 19. Qd2 {[%clk 0:01:04]}  b4 {[%clk 0:01:41]} 20. Bg5 {[%clk 0:00:59]}  Qb6 {[%clk 0:01:37]} 21. Be7 {[%clk 0:00:58]}  Nb7 {[%clk 0:01:30]} 22. Bxf8 {[%clk 0:00:45]}  Rxf8 {[%clk 0:01:29]} 23. Bxb7 {[%clk 0:00:40]}  Qxb7 {[%clk 0:01:28]} 24. Qe3 {[%clk 0:00:40]}  Qc6 {[%clk 0:01:27]} 25. Ra5 {[%clk 0:00:36]}  Rc8 {[%clk 0:01:24]} 26. Rfa1 {[%clk 0:00:35]}  Qxd6 {[%clk 0:01:24]} 27. Rxa6 {[%clk 0:00:33]}  Qd5 {[%clk 0:01:22]} 28. Qe4 {[%clk 0:00:32]}  Qd4 {[%clk 0:01:13]} 29. Ra8 {[%clk 0:00:30]}  Rf8 {[%clk 0:00:56]} 30. Qxd4 {[%clk 0:00:24]}  exd4 {[%clk 0:00:54]} 31. R1a5 {[%clk 0:00:24]}  d6 {[%clk 0:00:53]} 32. Kg2 {[%clk 0:00:20]}  h5 {[%clk 0:00:49]} 33. Kf3 {[%clk 0:00:20]}  Kh7 {[%clk 0:00:49]} 34. Ke4 {[%clk 0:00:18]}  Rxa8 {[%clk 0:00:45]} 35. Rxa8 {[%clk 0:00:18]}  h4 {[%clk 0:00:42]} 36. Kd5 {[%clk 0:00:18]}  hxg3 {[%clk 0:00:39]} 37. hxg3 {[%clk 0:00:19]}  Be5 {[%clk 0:00:30]} 38. f4 {[%clk 0:00:19]}  Bf6 {[%clk 0:00:29]} 39. Kxd6 {[%clk 0:00:19]}  g5 {[%clk 0:00:28]} 40. Kxc5 {[%clk 0:00:17]}  g4 {[%clk 0:00:26]} 41. Kxb4 {[%clk 0:00:15]}  Kg6 {[%clk 0:00:19]} 42. Ra6 {[%clk 0:00:15]}  Kf5 {[%clk 0:00:19]} 43. Rxf6+ {[%clk 0:00:15]}  Kxf6 {[%clk 0:00:19]} 44. Kc4 {[%clk 0:00:15]}  Ke6 {[%clk 0:00:20]} 45. Kxd4 {[%clk 0:00:16]}  Kd6 {[%clk 0:00:21]} 46. Ke4 {[%clk 0:00:16]}  Kc6 {[%clk 0:00:22]} 47. Kf5 {[%clk 0:00:16]}  Kc5 {[%clk 0:00:23]} 48. Kxg4 {[%clk 0:00:15]}  Kd4 {[%clk 0:00:24]} 49. Kf5 {[%clk 0:00:15]}  Ke3 {[%clk 0:00:24]} 50. g4 {[%clk 0:00:15]}  Kd2 {[%clk 0:00:25]} 51. g5 {[%clk 0:00:16]}  Kxc2 {[%clk 0:00:26]} 52. Kf6 {[%clk 0:00:17]}  Kxd3 {[%clk 0:00:26]} 53. Kxf7 {[%clk 0:00:17]}  Kc2 {[%clk 0:00:27]} 54. g6 {[%clk 0:00:18]}  Kxb2 {[%clk 0:00:28]} 55. g7 {[%clk 0:00:18]}  Kc3 {[%clk 0:00:29]} 56. g8=Q {[%clk 0:00:19]}  Kd3 {[%clk 0:00:30]} 57. f5 {[%clk 0:00:19]}  Ke3 {[%clk 0:00:31]} 58. f6 {[%clk 0:00:20]}  Kf4 {[%clk 0:00:31]} 59. Ke8 {[%clk 0:00:19]}  Kf5 {[%clk 0:00:32]} 60. f7 {[%clk 0:00:19]}  Kf6 {[%clk 0:00:33]} 61. f8=Q+ {[%clk 0:00:20]}  Ke5 {[%clk 0:00:34]} 62. Qg5+ {[%clk 0:00:20]}  Kd4 {[%clk 0:00:35]} 63. Qff4+ {[%clk 0:00:20]}  Kd3 {[%clk 0:00:35]} 64. Qgg3+ {[%clk 0:00:21]}  Kc2 {[%clk 0:00:36]} 65. Qff2+ {[%clk 0:00:22]}  Kd1 {[%clk 0:00:37]} 66. Qgg1# {[%clk 0:00:22]} 1-0

[Event "December 5 Early 2023"]
[Site "https://www.chess.com"]
[Date "2023.12.05"]
[Round "10"]
[White "Mohammed, Zozek Salah Mohammed"]
[Black "Lehtosaari, Mauri"]
[Result "1-0"]
[Board "105"]
[TimeControl "180+1"]
[WhiteFideId "4803361"]
[BlackFideId "501999"]
[WhiteElo "2370"]
[BlackElo "2482"]
[WhiteTeam "IRQ"]
[BlackTeam "FIN"]
[WhiteClock "0:00:35"]
[BlackClock "0:00:14"]

1. d4 {[%clk 0:03:00]}  d5 {[%clk 0:02:59]} 2. c4 {[%clk 0:02:58]}  c6 {[%clk 0:02:59]} 3. Nf3 {[%clk 0:02:58]}  Nf6 {[%clk 0:02:59]} 4. Nc3 {[%clk 0:02:58]}  dxc4 {[%clk 0:02:58]} 5. a4 {[%clk 0:02:54]}  Bf5 {[%clk 0:02:57]} 6. Ne5 {[%clk 0:02:53]}  Nbd7 {[%clk 0:02:57]} 7. Nxc4 {[%clk 0:02:53]}  Nb6 {[%clk 0:02:57]} 8. Ne5 {[%clk 0:02:52]}  a5 {[%clk 0:02:57]} 9. f3 {[%clk 0:02:43]}  Nfd7 {[%clk 0:02:51]} 10. Nxd7 {[%clk 0:02:38]}  Nxd7 {[%clk 0:02:49]} 11. e4 {[%clk 0:02:38]}  Bg6 {[%clk 0:02:33]} 12. Bc4 {[%clk 0:02:34]}  e5 {[%clk 0:02:28]} 13. Be3 {[%clk 0:02:29]}  Qb6 {[%clk 0:01:47]} 14. Qd2 {[%clk 0:02:24]}  exd4 {[%clk 0:01:42]} 15. Bxd4 {[%clk 0:02:23]}  Bc5 {[%clk 0:01:26]} 16. Bxg7 {[%clk 0:02:15]}  O-O-O {[%clk 0:01:26]} 17. Bxh8 {[%clk 0:02:09]}  Rxh8 {[%clk 0:01:26]} 18. Rd1 {[%clk 0:02:03]}  Ne5 {[%clk 0:01:20]} 19. Qe2 {[%clk 0:01:42]}  Re8 {[%clk 0:01:03]} 20. Kf1 {[%clk 0:01:25]}  h5 {[%clk 0:00:51]} 21. g3 {[%clk 0:01:21]}  f5 {[%clk 0:00:45]} 22. Kg2 {[%clk 0:01:20]}  h4 {[%clk 0:00:41]} 23. Bd3 {[%clk 0:01:11]}  Nxd3 {[%clk 0:00:33]} 24. Qxd3 {[%clk 0:01:07]}  Qxb2+ {[%clk 0:00:29]} 25. Rd2 {[%clk 0:01:06]}  h3+ {[%clk 0:00:26]} 26. Kxh3 {[%clk 0:01:04]}  Qb3 {[%clk 0:00:26]} 27. Qd7+ {[%clk 0:00:48]}  Kb8 {[%clk 0:00:26]} 28. Rb1 {[%clk 0:00:48]}  Qf7 {[%clk 0:00:19]} 29. Rxb7+ {[%clk 0:00:46]}  Ka8 {[%clk 0:00:20]} 30. Qxf7 {[%clk 0:00:42]}  Bxf7 {[%clk 0:00:20]} 31. Rxf7 {[%clk 0:00:42]}  Bb4 {[%clk 0:00:20]} 32. Rc2 {[%clk 0:00:39]}  Rh8+ {[%clk 0:00:19]} 33. Kg2 {[%clk 0:00:39]}  fxe4 {[%clk 0:00:19]} 34. Nxe4 {[%clk 0:00:36]}  Rd8 {[%clk 0:00:14]} 35. Rxc6 {[%clk 0:00:35]} 1-0

[Event "December 5 Early 2023"]
[Site "https://www.chess.com"]
[Date "2023.12.05"]
[Round "10"]
[White "Tabuenca Mendataurigoitia, Daniel"]
[Black "Barath1308"]
[Result "1-0"]
[Board "106"]
[TimeControl "180+1"]
[WhiteFideId "24563617"]
[WhiteElo "2481"]
[BlackElo "2364"]
[WhiteTeam "ESP"]
[WhiteClock "0:01:11"]
[BlackClock "0:00:39"]

1. Nf3 {[%clk 0:03:00]}  Nf6 {[%clk 0:02:59]} 2. Ng1 {[%clk 0:03:01]}  g6 {[%clk 0:02:59]} 3. Nf3 {[%clk 0:03:02]}  Bg7 {[%clk 0:02:59]} 4. g3 {[%clk 0:02:59]}  O-O {[%clk 0:02:59]} 5. Bg2 {[%clk 0:02:59]}  c5 {[%clk 0:03:00]} 6. O-O {[%clk 0:02:59]}  Nc6 {[%clk 0:03:00]} 7. d3 {[%clk 0:02:57]}  e5 {[%clk 0:03:00]} 8. e4 {[%clk 0:02:56]}  d5 {[%clk 0:03:00]} 9. exd5 {[%clk 0:02:55]}  Nxd5 {[%clk 0:02:59]} 10. Nbd2 {[%clk 0:02:53]}  h6 {[%clk 0:02:56]} 11. c3 {[%clk 0:02:51]}  Be6 {[%clk 0:02:55]} 12. a4 {[%clk 0:02:48]}  b6 {[%clk 0:02:55]} 13. Re1 {[%clk 0:02:46]}  Re8 {[%clk 0:02:53]} 14. Nc4 {[%clk 0:02:44]}  Qc7 {[%clk 0:02:52]} 15. Qc2 {[%clk 0:02:42]}  Rad8 {[%clk 0:02:51]} 16. Bd2 {[%clk 0:02:41]}  g5 {[%clk 0:02:49]} 17. Rad1 {[%clk 0:02:37]}  Bf5 {[%clk 0:02:49]} 18. Bc1 {[%clk 0:02:34]}  Bg6 {[%clk 0:02:48]} 19. h4 {[%clk 0:02:28]}  g4 {[%clk 0:02:45]} 20. Nh2 {[%clk 0:02:24]}  h5 {[%clk 0:02:44]} 21. f3 {[%clk 0:02:16]}  f5 {[%clk 0:02:38]} 22. fxg4 {[%clk 0:02:15]}  hxg4 {[%clk 0:02:37]} 23. Bg5 {[%clk 0:02:14]}  Nf6 {[%clk 0:02:33]} 24. Nf1 {[%clk 0:02:05]}  f4 {[%clk 0:01:47]} 25. Bxc6 {[%clk 0:01:58]}  Qxc6 {[%clk 0:01:47]} 26. Nxe5 {[%clk 0:01:58]}  Rxe5 {[%clk 0:01:47]} 27. Rxe5 {[%clk 0:01:57]}  fxg3 {[%clk 0:01:39]} 28. Qg2 {[%clk 0:01:51]}  Qxa4 {[%clk 0:01:33]} 29. Ree1 {[%clk 0:01:45]}  Rxd3 {[%clk 0:01:17]} 30. Rxd3 {[%clk 0:01:41]}  Bxd3 {[%clk 0:01:17]} 31. Qxg3 {[%clk 0:01:40]}  Nh5 {[%clk 0:01:15]} 32. Qxd3 {[%clk 0:01:37]}  Qc6 {[%clk 0:01:02]} 33. Qf5 {[%clk 0:01:18]}  g3 {[%clk 0:00:56]} 34. Re6 {[%clk 0:01:13]}  Qd7 {[%clk 0:00:39]} 35. Qg6 {[%clk 0:01:11]} 1-0

[Event "December 5 Early 2023"]
[Site "https://www.chess.com"]
[Date "2023.12.05"]
[Round "10"]
[White "Skibbe, Willi"]
[Black "Filipovic, Slobodan J"]
[Result "1-0"]
[Board "110"]
[TimeControl "180+1"]
[WhiteFideId "4682190"]
[BlackFideId "939633"]
[WhiteElo "2326"]
[BlackElo "2450"]
[WhiteTeam "GER"]
[BlackTeam "SRB"]
[WhiteClock "0:00:12"]
[BlackClock "0:00:09"]

1. e4 {[%clk 0:03:00]}  c5 {[%clk 0:03:00]} 2. c3 {[%clk 0:03:00]}  d5 {[%clk 0:02:59]} 3. exd5 {[%clk 0:03:00]}  Qxd5 {[%clk 0:03:00]} 4. Nf3 {[%clk 0:03:01]}  Nc6 {[%clk 0:02:53]} 5. Na3 {[%clk 0:03:00]}  Bf5 {[%clk 0:02:51]} 6. d4 {[%clk 0:02:57]}  cxd4 {[%clk 0:02:37]} 7. Nb5 {[%clk 0:02:57]}  O-O-O {[%clk 0:02:36]} 8. Nbxd4 {[%clk 0:02:55]}  e5 {[%clk 0:02:33]} 9. Bg5 {[%clk 0:02:17]}  f6 {[%clk 0:02:29]} 10. Nxf5 {[%clk 0:02:14]}  Qe4+ {[%clk 0:02:20]} 11. Qe2 {[%clk 0:02:13]}  Qxf5 {[%clk 0:02:17]} 12. Be3 {[%clk 0:02:13]}  g5 {[%clk 0:02:10]} 13. Nd2 {[%clk 0:02:01]}  g4 {[%clk 0:01:46]} 14. O-O-O {[%clk 0:01:50]}  h5 {[%clk 0:01:40]} 15. g3 {[%clk 0:01:41]}  Kb8 {[%clk 0:01:18]} 16. Bg2 {[%clk 0:01:38]}  Rc8 {[%clk 0:01:18]} 17. Nb3 {[%clk 0:01:34]}  Nh6 {[%clk 0:01:10]} 18. Qb5 {[%clk 0:01:30]}  Rh7 {[%clk 0:00:52]} 19. Bxc6 {[%clk 0:01:18]}  Rxc6 {[%clk 0:00:47]} 20. Rd8+ {[%clk 0:01:17]}  Rc8 {[%clk 0:00:47]} 21. Rhd1 {[%clk 0:01:14]}  Rc7 {[%clk 0:00:40]} 22. Qa5 {[%clk 0:00:32]}  b6 {[%clk 0:00:36]} 23. Qa6 {[%clk 0:00:20]}  Nf7 {[%clk 0:00:30]} 24. Rxc8+ {[%clk 0:00:12]}  Qxc8 {[%clk 0:00:27]} 25. Qxc8+ {[%clk 0:00:12]}  Kxc8 {[%clk 0:00:27]} 26. Kc2 {[%clk 0:00:13]}  Nd6 {[%clk 0:00:25]} 27. Nd2 {[%clk 0:00:12]}  f5 {[%clk 0:00:23]} 28. Bg5 {[%clk 0:00:11]}  Kd7 {[%clk 0:00:21]} 29. Re1 {[%clk 0:00:11]}  Ke6 {[%clk 0:00:21]} 30. Bf4 {[%clk 0:00:10]}  Bg7 {[%clk 0:00:21]} 31. b3 {[%clk 0:00:09]}  Rc6 {[%clk 0:00:20]} 32. c4 {[%clk 0:00:09]}  Bf6 {[%clk 0:00:19]} 33. Be3 {[%clk 0:00:09]}  e4 {[%clk 0:00:14]} 34. Bf4 {[%clk 0:00:09]}  Nf7 {[%clk 0:00:13]} 35. Nf1 {[%clk 0:00:09]}  Be5 {[%clk 0:00:12]} 36. Rd1 {[%clk 0:00:10]}  Bxf4 {[%clk 0:00:12]} 37. gxf4 {[%clk 0:00:11]}  Nd6 {[%clk 0:00:13]} 38. Ne3 {[%clk 0:00:11]}  b5 {[%clk 0:00:12]} 39. Kc3 {[%clk 0:00:09]}  bxc4 {[%clk 0:00:12]} 40. bxc4 {[%clk 0:00:10]}  Nb7 {[%clk 0:00:12]} 41. Rd5 {[%clk 0:00:10]}  Nd6 {[%clk 0:00:12]} 42. Re5+ {[%clk 0:00:10]}  Kf6 {[%clk 0:00:11]} 43. Nd5+ {[%clk 0:00:09]}  Kf7 {[%clk 0:00:11]} 44. Ne3 {[%clk 0:00:09]}  Kf6 {[%clk 0:00:11]} 45. Kd4 {[%clk 0:00:10]}  a6 {[%clk 0:00:09]} 46. Kd5 {[%clk 0:00:10]}  Rb6 {[%clk 0:00:09]} 47. c5 {[%clk 0:00:11]}  Rb5 {[%clk 0:00:06]} 48. Kxd6 {[%clk 0:00:11]}  Rxc5 {[%clk 0:00:05]} 49. Rxc5 {[%clk 0:00:11]}  h4 {[%clk 0:00:06]} 50. Rxf5+ {[%clk 0:00:11]}  Kg6 {[%clk 0:00:06]} 51. Rg5+ {[%clk 0:00:11]}  Kh6 {[%clk 0:00:06]} 52. Rxg4 {[%clk 0:00:12]}  h3 {[%clk 0:00:07]} 53. Ke6 {[%clk 0:00:11]}  a5 {[%clk 0:00:08]} 54. Kf6 {[%clk 0:00:11]}  a4 {[%clk 0:00:09]} 55. Rh4# {[%clk 0:00:12]} 1-0

[Event "December 5 Early 2023"]
[Site "https://www.chess.com"]
[Date "2023.12.05"]
[Round "10"]
[White "Liu, Casper"]
[Black "Shubhi Gupta"]
[Result "1-0"]
[Board "111"]
[TimeControl "180+1"]
[WhiteFideId "1454153"]
[BlackFideId "25195425"]
[WhiteElo "2443"]
[BlackElo "2306"]
[WhiteTeam "DEN"]
[BlackTeam "IND"]
[WhiteClock "0:00:46"]
[BlackClock "0:00:12"]

1. d4 {[%clk 0:02:56]}  d5 {[%clk 0:03:00]} 2. Bf4 {[%clk 0:02:56]}  c5 {[%clk 0:03:00]} 3. e3 {[%clk 0:02:55]}  Nc6 {[%clk 0:03:00]} 4. Nf3 {[%clk 0:02:55]}  Nf6 {[%clk 0:03:00]} 5. Be2 {[%clk 0:02:53]}  Bf5 {[%clk 0:02:53]} 6. O-O {[%clk 0:02:53]}  e6 {[%clk 0:02:54]} 7. h3 {[%clk 0:02:53]}  Bd6 {[%clk 0:02:54]} 8. Bxd6 {[%clk 0:02:53]}  Qxd6 {[%clk 0:02:55]} 9. c4 {[%clk 0:02:52]}  cxd4 {[%clk 0:02:54]} 10. Nxd4 {[%clk 0:02:52]}  Nxd4 {[%clk 0:02:54]} 11. Qxd4 {[%clk 0:02:53]}  O-O {[%clk 0:02:54]} 12. Nc3 {[%clk 0:02:52]}  e5 {[%clk 0:02:52]} 13. Qd2 {[%clk 0:02:46]}  Rfd8 {[%clk 0:02:31]} 14. Rfd1 {[%clk 0:02:43]}  Be6 {[%clk 0:01:40]} 15. cxd5 {[%clk 0:02:43]}  Nxd5 {[%clk 0:01:41]} 16. Bf3 {[%clk 0:02:18]}  e4 {[%clk 0:01:13]} 17. Bxe4 {[%clk 0:01:34]}  Nxc3 {[%clk 0:00:58]} 18. Qxd6 {[%clk 0:01:34]}  Rxd6 {[%clk 0:00:56]} 19. bxc3 {[%clk 0:01:32]}  Rb6 {[%clk 0:00:48]} 20. a4 {[%clk 0:01:26]}  f5 {[%clk 0:00:46]} 21. a5 {[%clk 0:01:22]}  Rb2 {[%clk 0:00:45]} 22. Rd6 {[%clk 0:01:15]}  Kf7 {[%clk 0:00:35]} 23. Bf3 {[%clk 0:01:15]}  Rc8 {[%clk 0:00:34]} 24. a6 {[%clk 0:01:10]}  b6 {[%clk 0:00:24]} 25. Bc6 {[%clk 0:00:51]}  Rc2 {[%clk 0:00:18]} 26. Bd7 {[%clk 0:00:45]}  Bxd7 {[%clk 0:00:14]} 27. Rxd7+ {[%clk 0:00:46]}  Kf6 {[%clk 0:00:14]} 28. Rxa7 {[%clk 0:00:46]}  R2xc3 {[%clk 0:00:15]} 29. Rb7 {[%clk 0:00:46]}  Rb3 {[%clk 0:00:12]} 30. a7 {[%clk 0:00:46]} 1-0

[Event "December 5 Early 2023"]
[Site "https://www.chess.com"]
[Date "2023.12.05"]
[Round "10"]
[White "Todorovic, Bojan"]
[Black "Rodriguez Santiago, Jaime"]
[Result "1-0"]
[Board "112"]
[TimeControl "180+1"]
[WhiteFideId "917087"]
[BlackFideId "3100898"]
[WhiteElo "2439"]
[BlackElo "2290"]
[WhiteTeam "SRB"]
[BlackTeam "PUR"]
[WhiteClock "0:00:14"]
[BlackClock "0:00:36"]

1. Nf3 {[%clk 0:02:59]}  Nf6 {[%clk 0:02:59]} 2. c4 {[%clk 0:02:57]}  e6 {[%clk 0:02:58]} 3. Nc3 {[%clk 0:02:55]}  d5 {[%clk 0:02:58]} 4. d4 {[%clk 0:02:52]}  c5 {[%clk 0:02:57]} 5. cxd5 {[%clk 0:02:48]}  Nxd5 {[%clk 0:02:57]} 6. e4 {[%clk 0:02:44]}  Nxc3 {[%clk 0:02:57]} 7. bxc3 {[%clk 0:02:44]}  cxd4 {[%clk 0:02:58]} 8. cxd4 {[%clk 0:02:44]}  Bb4+ {[%clk 0:02:59]} 9. Bd2 {[%clk 0:02:45]}  Bxd2+ {[%clk 0:03:00]} 10. Qxd2 {[%clk 0:02:45]}  O-O {[%clk 0:03:00]} 11. Bc4 {[%clk 0:02:42]}  Nd7 {[%clk 0:02:56]} 12. O-O {[%clk 0:02:41]}  b6 {[%clk 0:02:55]} 13. d5 {[%clk 0:02:37]}  Nc5 {[%clk 0:02:54]} 14. Qe3 {[%clk 0:02:29]}  exd5 {[%clk 0:02:50]} 15. Bxd5 {[%clk 0:02:28]}  Rb8 {[%clk 0:02:47]} 16. Rad1 {[%clk 0:02:26]}  Qe7 {[%clk 0:02:43]} 17. Ng5 {[%clk 0:02:13]}  h6 {[%clk 0:02:38]} 18. Nxf7 {[%clk 0:02:08]}  Rxf7 {[%clk 0:02:35]} 19. Qf4 {[%clk 0:02:08]}  Rb7 {[%clk 0:02:21]} 20. Bxf7+ {[%clk 0:02:06]}  Qxf7 {[%clk 0:02:16]} 21. Rd8+ {[%clk 0:02:06]}  Kh7 {[%clk 0:02:15]} 22. Qxf7 {[%clk 0:02:05]}  Rxf7 {[%clk 0:02:15]} 23. Rxc8 {[%clk 0:02:05]}  Nxe4 {[%clk 0:02:15]} 24. f3 {[%clk 0:02:00]}  Nc5 {[%clk 0:02:14]} 25. Re1 {[%clk 0:01:53]}  Rd7 {[%clk 0:02:13]} 26. Re2 {[%clk 0:01:52]}  Kg6 {[%clk 0:02:10]} 27. h4 {[%clk 0:01:51]}  Rd4 {[%clk 0:02:08]} 28. g3 {[%clk 0:01:49]}  Rd3 {[%clk 0:02:08]} 29. Kg2 {[%clk 0:01:48]}  Ra3 {[%clk 0:02:08]} 30. g4 {[%clk 0:01:39]}  Nd3 {[%clk 0:02:06]} 31. Kg3 {[%clk 0:01:36]}  Kf6 {[%clk 0:02:02]} 32. Rc6+ {[%clk 0:01:34]}  Kf7 {[%clk 0:02:01]} 33. Rc7+ {[%clk 0:01:34]}  Kf6 {[%clk 0:02:01]} 34. Ree7 {[%clk 0:01:20]}  Ne5 {[%clk 0:01:53]} 35. Rxg7 {[%clk 0:01:09]}  Rxf3+ {[%clk 0:01:44]} 36. Kg2 {[%clk 0:01:09]}  Ra3 {[%clk 0:01:44]} 37. Rxa7 {[%clk 0:01:05]}  Rc3 {[%clk 0:01:38]} 38. g5+ {[%clk 0:01:02]}  hxg5 {[%clk 0:01:38]} 39. Rxg5 {[%clk 0:00:56]}  Nf3 {[%clk 0:01:32]} 40. Rg4 {[%clk 0:00:43]}  Ne1+ {[%clk 0:01:28]} 41. Kf2 {[%clk 0:00:39]}  Nd3+ {[%clk 0:01:28]} 42. Ke2 {[%clk 0:00:37]}  Ne5 {[%clk 0:01:23]} 43. Rf4+ {[%clk 0:00:38]}  Kg6 {[%clk 0:01:22]} 44. Re7 {[%clk 0:00:33]}  Nc6 {[%clk 0:01:10]} 45. Re6+ {[%clk 0:00:32]}  Kg7 {[%clk 0:01:10]} 46. Kd2 {[%clk 0:00:30]}  Rc5 {[%clk 0:01:10]} 47. Rff6 {[%clk 0:00:26]}  Nb4 {[%clk 0:01:07]} 48. a4 {[%clk 0:00:24]}  Nd5 {[%clk 0:01:07]} 49. Rg6+ {[%clk 0:00:24]}  Kf7 {[%clk 0:01:06]} 50. Rc6 {[%clk 0:00:23]}  Ra5 {[%clk 0:01:05]} 51. Rg4 {[%clk 0:00:21]}  b5 {[%clk 0:00:53]} 52. Rc5 {[%clk 0:00:20]}  Nf6 {[%clk 0:00:47]} 53. Rf4 {[%clk 0:00:19]}  Rxa4 {[%clk 0:00:46]} 54. Rc7+ {[%clk 0:00:16]}  Kg6 {[%clk 0:00:45]} 55. Rxa4 {[%clk 0:00:14]}  bxa4 {[%clk 0:00:45]} 56. Ra7 {[%clk 0:00:14]}  Kh5 {[%clk 0:00:44]} 57. Rxa4 {[%clk 0:00:14]}  Ng4 {[%clk 0:00:44]} 58. Ke2 {[%clk 0:00:14]}  Kxh4 {[%clk 0:00:45]} 59. Kf3 {[%clk 0:00:14]}  Kh3 {[%clk 0:00:36]} 60. Rxg4 {[%clk 0:00:14]} 1-0

[Event "December 5 Early 2023"]
[Site "https://www.chess.com"]
[Date "2023.12.05"]
[Round "10"]
[White "Vivaan Vishal Shah"]
[Black "Barbot, Pierre"]
[Result "1-0"]
[Board "116"]
[TimeControl "180+1"]
[WhiteFideId "25184237"]
[BlackFideId "663727"]
[WhiteElo "2541"]
[BlackElo "2317"]
[WhiteTeam "IND"]
[BlackTeam "FRA"]
[WhiteClock "0:00:48"]
[BlackClock "0:00:02"]

1. d4 {[%clk 0:02:41]}  Nf6 {[%clk 0:02:59]} 2. c4 {[%clk 0:02:36]}  g6 {[%clk 0:02:59]} 3. g3 {[%clk 0:02:34]}  Bg7 {[%clk 0:02:58]} 4. Bg2 {[%clk 0:02:33]}  d5 {[%clk 0:02:57]} 5. cxd5 {[%clk 0:02:32]}  Nxd5 {[%clk 0:02:58]} 6. Nc3 {[%clk 0:02:31]}  Nb6 {[%clk 0:02:56]} 7. Nf3 {[%clk 0:02:30]}  O-O {[%clk 0:02:40]} 8. O-O {[%clk 0:02:28]}  Nc6 {[%clk 0:02:39]} 9. e3 {[%clk 0:02:25]}  Re8 {[%clk 0:02:36]} 10. h3 {[%clk 0:02:19]}  a5 {[%clk 0:02:23]} 11. d5 {[%clk 0:02:12]}  Nb4 {[%clk 0:02:11]} 12. e4 {[%clk 0:02:11]}  c6 {[%clk 0:02:06]} 13. a3 {[%clk 0:02:07]}  Na6 {[%clk 0:02:02]} 14. dxc6 {[%clk 0:02:05]}  bxc6 {[%clk 0:02:00]} 15. Qc2 {[%clk 0:02:04]}  Be6 {[%clk 0:01:52]} 16. Rd1 {[%clk 0:02:00]}  Qc8 {[%clk 0:01:50]} 17. Ng5 {[%clk 0:01:52]}  Bc4 {[%clk 0:01:22]} 18. b3 {[%clk 0:01:50]}  Be6 {[%clk 0:01:22]} 19. Be3 {[%clk 0:01:46]}  Rb8 {[%clk 0:01:15]} 20. Rab1 {[%clk 0:01:40]}  Nc7 {[%clk 0:01:03]} 21. Bf4 {[%clk 0:01:30]}  Rb7 {[%clk 0:00:59]} 22. Ne2 {[%clk 0:01:25]}  h6 {[%clk 0:00:57]} 23. Nf3 {[%clk 0:01:21]}  Nb5 {[%clk 0:00:47]} 24. Bc1 {[%clk 0:01:10]}  Rc7 {[%clk 0:00:32]} 25. Bb2 {[%clk 0:01:07]}  Bxb2 {[%clk 0:00:29]} 26. Qxb2 {[%clk 0:01:06]}  Bxh3 {[%clk 0:00:29]} 27. Nf4 {[%clk 0:01:06]}  Bxg2 {[%clk 0:00:28]} 28. Kxg2 {[%clk 0:01:07]}  Nd7 {[%clk 0:00:15]} 29. Rh1 {[%clk 0:01:05]}  Nf6 {[%clk 0:00:11]} 30. Rxh6 {[%clk 0:01:04]}  Kg7 {[%clk 0:00:11]} 31. Rbh1 {[%clk 0:01:03]}  Qg4 {[%clk 0:00:07]} 32. Rh8 {[%clk 0:01:02]}  Rxh8 {[%clk 0:00:07]} 33. Rxh8 {[%clk 0:00:55]}  Kxh8 {[%clk 0:00:07]} 34. Ne5 {[%clk 0:00:55]}  Qc8 {[%clk 0:00:05]} 35. Nxf7+ {[%clk 0:00:55]}  Kg7 {[%clk 0:00:05]} 36. Ng5 {[%clk 0:00:55]}  Rd7 {[%clk 0:00:05]} 37. e5 {[%clk 0:00:52]}  Rd4 {[%clk 0:00:02]} 38. Nfe6+ {[%clk 0:00:52]}  Kh6 {[%clk 0:00:01]} 39. Nxd4 {[%clk 0:00:48]}  Nxd4 {[%clk 0:00:02]} 40. Qxd4 {[%clk 0:00:47]}  Kxg5 {[%clk 0:00:02]} 41. Qf4+ {[%clk 0:00:48]}  Kh5 {[%clk 0:00:02]} 42. Qh4# {[%clk 0:00:48]} 1-0

[Event "December 5 Early 2023"]
[Site "https://www.chess.com"]
[Date "2023.12.05"]
[Round "10"]
[White "Colonetti, Fabio"]
[Black "Gavrilov, Maxim"]
[Result "0-1"]
[Board "118"]
[TimeControl "180+1"]
[WhiteFideId "897612"]
[BlackFideId "24271454"]
[WhiteElo "2278"]
[BlackElo "2512"]
[WhiteTeam "ITA"]
[BlackTeam "RUS"]
[WhiteClock "0:00:12"]
[BlackClock "0:00:59"]

1. d4 {[%clk 0:02:58]}  Nf6 {[%clk 0:02:59]} 2. c4 {[%clk 0:02:54]}  c6 {[%clk 0:02:52]} 3. Nc3 {[%clk 0:02:51]}  d5 {[%clk 0:02:53]} 4. cxd5 {[%clk 0:02:52]}  cxd5 {[%clk 0:02:53]} 5. Bf4 {[%clk 0:02:52]}  Nc6 {[%clk 0:02:53]} 6. e3 {[%clk 0:02:52]}  a6 {[%clk 0:02:53]} 7. Bd3 {[%clk 0:02:44]}  Bg4 {[%clk 0:02:50]} 8. Qb3 {[%clk 0:02:43]}  Na5 {[%clk 0:02:46]} 9. Qa4+ {[%clk 0:02:43]}  Bd7 {[%clk 0:02:45]} 10. Qd1 {[%clk 0:02:42]}  Rc8 {[%clk 0:02:43]} 11. Nge2 {[%clk 0:02:35]}  e6 {[%clk 0:02:42]} 12. O-O {[%clk 0:02:34]}  Be7 {[%clk 0:02:38]} 13. Ng3 {[%clk 0:02:27]}  b5 {[%clk 0:02:36]} 14. h4 {[%clk 0:02:24]}  Nc4 {[%clk 0:02:31]} 15. Qe2 {[%clk 0:02:19]}  b4 {[%clk 0:02:27]} 16. Nd1 {[%clk 0:02:18]}  Bb5 {[%clk 0:02:17]} 17. h5 {[%clk 0:02:05]}  h6 {[%clk 0:02:13]} 18. b3 {[%clk 0:01:58]}  Na3 {[%clk 0:02:10]} 19. Nb2 {[%clk 0:01:57]}  Rc2 {[%clk 0:02:07]} 20. Qxc2 {[%clk 0:00:57]}  Nxc2 {[%clk 0:02:06]} 21. Bxc2 {[%clk 0:00:57]}  Bxf1 {[%clk 0:02:05]} 22. Rxf1 {[%clk 0:00:58]}  Bd6 {[%clk 0:02:00]} 23. Nd3 {[%clk 0:00:55]}  O-O {[%clk 0:01:56]} 24. Ne5 {[%clk 0:00:55]}  Qc7 {[%clk 0:01:51]} 25. Bd3 {[%clk 0:00:54]}  Qc3 {[%clk 0:01:45]} 26. Bxa6 {[%clk 0:00:47]}  Ra8 {[%clk 0:01:44]} 27. Bb5 {[%clk 0:00:43]}  Rxa2 {[%clk 0:01:41]} 28. Ne2 {[%clk 0:00:29]}  Qxb3 {[%clk 0:01:15]} 29. Rc1 {[%clk 0:00:29]}  Nxh5 {[%clk 0:01:06]} 30. Rc8+ {[%clk 0:00:28]}  Kh7 {[%clk 0:01:05]} 31. Nxf7 {[%clk 0:00:25]}  Nxf4 {[%clk 0:01:03]} 32. Nxf4 {[%clk 0:00:16]}  Bxf4 {[%clk 0:01:00]} 33. exf4 {[%clk 0:00:16]}  Qd1+ {[%clk 0:00:59]} 34. Kh2 {[%clk 0:00:12]}  Qh5+ {[%clk 0:00:59]} 0-1